[Event "Titled Tuesday Blitz March 07 Early 2023"]
[White "Staudenhocker43"]
[Black "Dehtiarov, Roman"]
[BlackFideId "14186640"]
[WhiteElo "2438"]
[BlackElo "2162"]
[Result "0-1"]
[Round "04"]
[TimeControl "180+2"]
[Date "2023.03.07"]
[WhiteClock "0:00:26"]
[BlackClock "0:00:31"]

1. e4 {[%clk 0:03:00]}  e5 {[%clk 0:03:00]} 2. Nf3 {[%clk 0:03:00]}  Nc6 {[%clk 0:03:00]} 3. Bb5 {[%clk 0:03:00]}  a6 {[%clk 0:03:01]} 4. Ba4 {[%clk 0:03:00]}  Nf6 {[%clk 0:03:01]} 5. O-O {[%clk 0:03:00]}  Be7 {[%clk 0:03:02]} 6. Re1 {[%clk 0:03:00]}  b5 {[%clk 0:03:02]} 7. Bb3 {[%clk 0:03:01]}  d6 {[%clk 0:03:03]} 8. c3 {[%clk 0:03:01]}  O-O {[%clk 0:03:03]} 9. h3 {[%clk 0:03:01]}  Nb8 {[%clk 0:03:03]} 10. d4 {[%clk 0:03:01]}  Nbd7 {[%clk 0:03:04]} 11. Nbd2 {[%clk 0:03:01]}  Bb7 {[%clk 0:03:04]} 12. Bc2 {[%clk 0:02:58]}  Re8 {[%clk 0:03:04]} 13. Nf1 {[%clk 0:02:58]}  Bf8 {[%clk 0:03:05]} 14. Ng3 {[%clk 0:02:58]}  g6 {[%clk 0:03:06]} 15. Bd2 {[%clk 0:02:57]}  h6 {[%clk 0:03:04]} 16. a4 {[%clk 0:02:56]}  Bg7 {[%clk 0:03:03]} 17. Qc1 {[%clk 0:02:55]}  Kh7 {[%clk 0:03:03]} 18. Bd3 {[%clk 0:02:56]}  c6 {[%clk 0:03:01]} 19. Ra2 {[%clk 0:02:49]}  Qe7 {[%clk 0:03:01]} 20. Qc2 {[%clk 0:02:49]}  Nb6 {[%clk 0:02:39]} 21. b3 {[%clk 0:02:47]}  Nfd7 {[%clk 0:02:24]} 22. Rea1 {[%clk 0:02:35]}  Rac8 {[%clk 0:02:12]} 23. dxe5 {[%clk 0:02:16]}  dxe5 {[%clk 0:02:04]} 24. Be3 {[%clk 0:02:05]}  Nc5 {[%clk 0:01:59]} 25. Bf1 {[%clk 0:01:58]}  Nbd7 {[%clk 0:01:54]} 26. c4 {[%clk 0:01:54]}  b4 {[%clk 0:01:49]} 27. Rd1 {[%clk 0:01:50]}  Ne6 {[%clk 0:01:46]} 28. Qb1 {[%clk 0:01:41]}  c5 {[%clk 0:01:42]} 29. Bd3 {[%clk 0:01:31]}  Nd4 {[%clk 0:01:37]} 30. Bxd4 {[%clk 0:01:30]}  cxd4 {[%clk 0:01:35]} 31. Ne1 {[%clk 0:01:24]}  h5 {[%clk 0:01:28]} 32. Qc2 {[%clk 0:01:22]}  Nc5 {[%clk 0:01:27]} 33. Qe2 {[%clk 0:01:21]}  Nxb3 {[%clk 0:01:18]} 34. Rb1 {[%clk 0:01:13]}  Na5 {[%clk 0:01:16]} 35. Nxh5 {[%clk 0:00:47]}  gxh5 {[%clk 0:01:13]} 36. Qxh5+ {[%clk 0:00:48]}  Kg8 {[%clk 0:01:13]} 37. Nf3 {[%clk 0:00:48]}  Qd6 {[%clk 0:01:04]} 38. Ng5 {[%clk 0:00:43]}  Qg6 {[%clk 0:01:04]} 39. Qxg6 {[%clk 0:00:44]}  fxg6 {[%clk 0:01:05]} 40. Rxb4 {[%clk 0:00:44]}  Bf8 {[%clk 0:01:02]} 41. Rb6 {[%clk 0:00:43]}  Rc6 {[%clk 0:01:00]} 42. Rab2 {[%clk 0:00:42]}  Re7 {[%clk 0:00:40]} 43. Rxc6 {[%clk 0:00:24]}  Bxc6 {[%clk 0:00:41]} 44. Rb6 {[%clk 0:00:24]}  Ra7 {[%clk 0:00:32]} 45. Rxa6 {[%clk 0:00:25]}  Rxa6 {[%clk 0:00:32]} 46. c5 {[%clk 0:00:24]}  Ra7 {[%clk 0:00:31]} 47. Bb5 {[%clk 0:00:24]}  Bxb5 {[%clk 0:00:31]} 48. axb5 {[%clk 0:00:25]}  Bxc5 {[%clk 0:00:31]} 49. Ne6 {[%clk 0:00:26]}  Bb6 {[%clk 0:00:31]} 0-1


[Site "https://www.chess.com"]

[Event "Titled Tuesday Blitz March 07 Early 2023"]
[White "Ozer, Omer Faruk"]
[Black "Fikiet, Alex"]
[WhiteFideId "6354564"]
[BlackFideId "2052717"]
[WhiteElo "2260"]
[BlackElo "2438"]
[Result "1-0"]
[Round "04"]
[TimeControl "180+2"]
[Date "2023.03.07"]
[WhiteClock "0:00:51"]
[BlackClock "0:00:21"]

1. d4 {[%clk 0:03:00]}  d5 {[%clk 0:02:58]} 2. Nf3 {[%clk 0:03:00]}  e6 {[%clk 0:02:58]} 3. g3 {[%clk 0:03:00]}  a6 {[%clk 0:02:56]} 4. Bg2 {[%clk 0:03:00]}  c5 {[%clk 0:02:53]} 5. O-O {[%clk 0:03:00]}  cxd4 {[%clk 0:02:52]} 6. Nxd4 {[%clk 0:03:00]}  Nf6 {[%clk 0:02:50]} 7. b3 {[%clk 0:02:57]}  Be7 {[%clk 0:02:30]} 8. Bb2 {[%clk 0:02:56]}  O-O {[%clk 0:02:30]} 9. Nd2 {[%clk 0:02:56]}  Nc6 {[%clk 0:02:16]} 10. Nxc6 {[%clk 0:02:54]}  bxc6 {[%clk 0:02:17]} 11. c4 {[%clk 0:02:54]}  Rb8 {[%clk 0:02:13]} 12. Qc2 {[%clk 0:02:54]}  Nd7 {[%clk 0:01:57]} 13. e4 {[%clk 0:02:52]}  Bb7 {[%clk 0:01:46]} 14. Rfd1 {[%clk 0:02:51]}  Bf6 {[%clk 0:01:43]} 15. Nf3 {[%clk 0:02:42]}  Bxb2 {[%clk 0:01:36]} 16. Qxb2 {[%clk 0:02:43]}  Qb6 {[%clk 0:01:24]} 17. Rac1 {[%clk 0:02:27]}  Nc5 {[%clk 0:01:19]} 18. Ne5 {[%clk 0:02:12]}  dxe4 {[%clk 0:01:13]} 19. Qc3 {[%clk 0:01:18]}  f6 {[%clk 0:01:10]} 20. Nd7 {[%clk 0:01:18]}  Nxd7 {[%clk 0:01:09]} 21. Rxd7 {[%clk 0:01:19]}  c5 {[%clk 0:01:00]} 22. Qe3 {[%clk 0:01:11]}  Qc6 {[%clk 0:00:54]} 23. Rcd1 {[%clk 0:01:09]}  Rf7 {[%clk 0:00:44]} 24. R7d6 {[%clk 0:01:06]}  Qc7 {[%clk 0:00:38]} 25. Bxe4 {[%clk 0:01:05]}  Bxe4 {[%clk 0:00:37]} 26. Qxe4 {[%clk 0:01:06]}  Re8 {[%clk 0:00:27]} 27. Rxe6 {[%clk 0:01:04]}  Rxe6 {[%clk 0:00:27]} 28. Qxe6 {[%clk 0:01:05]}  h6 {[%clk 0:00:25]} 29. Qxa6 {[%clk 0:00:57]}  Re7 {[%clk 0:00:23]} 30. Qd6 {[%clk 0:00:55]}  Qb7 {[%clk 0:00:21]} 31. Qd5+ {[%clk 0:00:51]} 1-0


[Site "https://www.chess.com"]

[Event "Titled Tuesday Blitz March 07 Early 2023"]
[White "Zherebtsova, Alexandra"]
[Black "Papasimakopoulos, Alexandros"]
[WhiteFideId "24129518"]
[BlackFideId "4244125"]
[WhiteElo "2055"]
[BlackElo "2359"]
[Result "0-1"]
[Round "04"]
[TimeControl "180+2"]
[Date "2023.03.07"]
[WhiteClock "0:00:04"]
[BlackClock "0:00:09"]

1. d4 {[%clk 0:02:18]}  e6 {[%clk 0:02:54]} 2. Nf3 {[%clk 0:02:17]}  b6 {[%clk 0:02:53]} 3. c4 {[%clk 0:02:18]}  Bb7 {[%clk 0:02:53]} 4. g3 {[%clk 0:02:18]}  Bb4+ {[%clk 0:02:51]} 5. Nbd2 {[%clk 0:02:18]}  Nf6 {[%clk 0:02:47]} 6. a3 {[%clk 0:02:18]}  Bxd2+ {[%clk 0:02:46]} 7. Qxd2 {[%clk 0:02:18]}  O-O {[%clk 0:02:46]} 8. Bg2 {[%clk 0:02:18]}  d6 {[%clk 0:02:46]} 9. O-O {[%clk 0:02:18]}  Nbd7 {[%clk 0:02:46]} 10. b4 {[%clk 0:02:18]}  Qe7 {[%clk 0:02:45]} 11. Bb2 {[%clk 0:02:19]}  Be4 {[%clk 0:02:41]} 12. Rfd1 {[%clk 0:02:14]}  h6 {[%clk 0:02:39]} 13. a4 {[%clk 0:02:07]}  a5 {[%clk 0:02:39]} 14. b5 {[%clk 0:02:07]}  Rfe8 {[%clk 0:02:31]} 15. Qc3 {[%clk 0:02:04]}  e5 {[%clk 0:02:18]} 16. e3 {[%clk 0:01:58]}  Bxf3 {[%clk 0:02:12]} 17. Bxf3 {[%clk 0:01:56]}  e4 {[%clk 0:02:12]} 18. Bg2 {[%clk 0:01:53]}  h5 {[%clk 0:02:05]} 19. h3 {[%clk 0:01:48]}  Rac8 {[%clk 0:01:59]} 20. Rac1 {[%clk 0:01:40]}  c6 {[%clk 0:01:50]} 21. bxc6 {[%clk 0:01:39]}  Rxc6 {[%clk 0:01:50]} 22. Qb3 {[%clk 0:01:33]}  Rec8 {[%clk 0:01:49]} 23. Ba3 {[%clk 0:01:31]}  Qd8 {[%clk 0:01:42]} 24. Qb5 {[%clk 0:01:22]}  Qc7 {[%clk 0:01:37]} 25. Bf1 {[%clk 0:01:22]}  d5 {[%clk 0:01:34]} 26. cxd5 {[%clk 0:01:14]}  Rxc1 {[%clk 0:01:24]} 27. Rxc1 {[%clk 0:01:14]}  Qb8 {[%clk 0:01:21]} 28. Rc6 {[%clk 0:01:10]}  Re8 {[%clk 0:01:17]} 29. Bd6 {[%clk 0:01:05]}  Qd8 {[%clk 0:01:11]} 30. Qc4 {[%clk 0:00:47]}  h4 {[%clk 0:01:05]} 31. g4 {[%clk 0:00:44]}  Nh7 {[%clk 0:01:03]} 32. Bc7 {[%clk 0:00:37]}  Qe7 {[%clk 0:00:54]} 33. d6 {[%clk 0:00:33]}  Qf6 {[%clk 0:00:50]} 34. Bxb6 {[%clk 0:00:19]}  Ng5 {[%clk 0:00:50]} 35. Bg2 {[%clk 0:00:17]}  Nf3+ {[%clk 0:00:46]} 36. Kh1 {[%clk 0:00:14]}  Kh7 {[%clk 0:00:30]} 37. Bxa5 {[%clk 0:00:13]}  Rb8 {[%clk 0:00:26]} 38. Bb4 {[%clk 0:00:13]}  Re8 {[%clk 0:00:19]} 39. Rc7 {[%clk 0:00:13]}  Rd8 {[%clk 0:00:16]} 40. a5 {[%clk 0:00:12]}  Ng5 {[%clk 0:00:13]} 41. Qc2 {[%clk 0:00:10]}  Qe6 {[%clk 0:00:11]} 42. a6 {[%clk 0:00:08]}  Nf6 {[%clk 0:00:12]} 43. a7 {[%clk 0:00:08]}  Nxg4 {[%clk 0:00:12]} 44. hxg4 {[%clk 0:00:08]}  Qxg4 {[%clk 0:00:13]} 45. d7 {[%clk 0:00:06]}  h3 {[%clk 0:00:13]} 46. Bxe4+ {[%clk 0:00:06]}  Nxe4 {[%clk 0:00:13]} 47. f3 {[%clk 0:00:05]}  Qxf3+ {[%clk 0:00:10]} 48. Kh2 {[%clk 0:00:06]}  f5 {[%clk 0:00:09]} 49. Be7 {[%clk 0:00:05]}  Nf2 {[%clk 0:00:08]} 50. Bxd8 {[%clk 0:00:04]}  Qg2# {[%clk 0:00:09]} 0-1


[Site "https://www.chess.com"]

[Event "Titled Tuesday Blitz March 07 Early 2023"]
[White "Petrova, Irina"]
[Black "Hamitevici, Vladimir"]
[WhiteFideId "14124122"]
[BlackFideId "13902393"]
[WhiteElo "2084"]
[BlackElo "2401"]
[Result "0-1"]
[Round "04"]
[TimeControl "180+2"]
[Date "2023.03.07"]
[WhiteClock "0:00:09"]
[BlackClock "0:00:07"]

1. e4 {[%clk 0:03:00]}  e5 {[%clk 0:02:58]} 2. Nf3 {[%clk 0:03:01]}  Nc6 {[%clk 0:02:59]} 3. Bb5 {[%clk 0:03:01]}  a6 {[%clk 0:02:59]} 4. Ba4 {[%clk 0:03:01]}  d6 {[%clk 0:03:00]} 5. c4 {[%clk 0:02:54]}  Bd7 {[%clk 0:02:51]} 6. Nc3 {[%clk 0:02:53]}  Nd4 {[%clk 0:02:40]} 7. Bxd7+ {[%clk 0:02:49]}  Qxd7 {[%clk 0:02:39]} 8. d3 {[%clk 0:02:47]}  Ne7 {[%clk 0:02:27]} 9. O-O {[%clk 0:02:45]}  Nec6 {[%clk 0:02:20]} 10. Rb1 {[%clk 0:02:43]}  Be7 {[%clk 0:02:10]} 11. b4 {[%clk 0:02:39]}  Nxf3+ {[%clk 0:02:11]} 12. Qxf3 {[%clk 0:02:39]}  Nd4 {[%clk 0:02:12]} 13. Qd1 {[%clk 0:02:39]}  f5 {[%clk 0:02:10]} 14. Be3 {[%clk 0:02:37]}  O-O {[%clk 0:01:59]} 15. Bxd4 {[%clk 0:02:37]}  exd4 {[%clk 0:01:59]} 16. Nd5 {[%clk 0:02:31]}  Bd8 {[%clk 0:02:00]} 17. b5 {[%clk 0:02:16]}  Qf7 {[%clk 0:01:56]} 18. a4 {[%clk 0:02:10]}  axb5 {[%clk 0:01:46]} 19. cxb5 {[%clk 0:02:04]}  c6 {[%clk 0:01:43]} 20. bxc6 {[%clk 0:02:04]}  bxc6 {[%clk 0:01:44]} 21. Nb6 {[%clk 0:02:04]}  Ra6 {[%clk 0:01:35]} 22. Nc4 {[%clk 0:01:59]}  c5 {[%clk 0:01:27]} 23. exf5 {[%clk 0:01:55]}  d5 {[%clk 0:01:23]} 24. Ne5 {[%clk 0:01:48]}  Qxf5 {[%clk 0:01:23]} 25. Nf3 {[%clk 0:01:49]}  Bf6 {[%clk 0:01:10]} 26. Rb7 {[%clk 0:01:44]}  Rfa8 {[%clk 0:01:00]} 27. Qb3 {[%clk 0:01:38]}  h6 {[%clk 0:00:51]} 28. Rb8+ {[%clk 0:01:29]}  Kh7 {[%clk 0:00:49]} 29. Rxa8 {[%clk 0:01:28]}  Rxa8 {[%clk 0:00:50]} 30. Re1 {[%clk 0:01:22]}  Qd7 {[%clk 0:00:36]} 31. h3 {[%clk 0:01:12]}  Rxa4 {[%clk 0:00:31]} 32. Ne5 {[%clk 0:01:06]}  Bxe5 {[%clk 0:00:20]} 33. Rxe5 {[%clk 0:01:07]}  c4 {[%clk 0:00:20]} 34. Qc2 {[%clk 0:00:46]}  Ra1+ {[%clk 0:00:17]} 35. Kh2 {[%clk 0:00:46]}  c3 {[%clk 0:00:18]} 36. f4 {[%clk 0:00:46]}  Qf7 {[%clk 0:00:17]} 37. Qf2 {[%clk 0:00:40]}  Rb1 {[%clk 0:00:15]} 38. Re2 {[%clk 0:00:34]}  Rd1 {[%clk 0:00:13]} 39. Qxd4 {[%clk 0:00:32]}  Rd2 {[%clk 0:00:09]} 40. Re1 {[%clk 0:00:20]}  Qg6 {[%clk 0:00:09]} 41. Qxd5 {[%clk 0:00:17]}  Rxd3 {[%clk 0:00:06]} 42. Qe4 {[%clk 0:00:17]}  Rd2 {[%clk 0:00:03]} 43. Qxg6+ {[%clk 0:00:16]}  Kxg6 {[%clk 0:00:04]} 44. Re6+ {[%clk 0:00:15]}  Kf5 {[%clk 0:00:04]} 45. Rc6 {[%clk 0:00:16]}  c2 {[%clk 0:00:04]} 46. Kg3 {[%clk 0:00:15]}  Ke4 {[%clk 0:00:05]} 47. Re6+ {[%clk 0:00:15]}  Kd3 {[%clk 0:00:05]} 48. Rd6+ {[%clk 0:00:15]}  Ke2 {[%clk 0:00:06]} 49. Rc6 {[%clk 0:00:14]}  Kd1 {[%clk 0:00:06]} 50. Kg4 {[%clk 0:00:09]}  Rxg2+ {[%clk 0:00:06]} 51. Kf5 {[%clk 0:00:08]}  c1=Q {[%clk 0:00:06]} 52. Rxc1+ {[%clk 0:00:09]}  Kxc1 {[%clk 0:00:07]} 0-1


[Site "https://www.chess.com"]

[Event "Titled Tuesday Blitz March 07 Early 2023"]
[White "Malek, Jan"]
[Black "Miszler, Levente"]
[WhiteFideId "21864080"]
[BlackFideId "763276"]
[WhiteElo "2255"]
[BlackElo "2176"]
[Result "1-0"]
[Round "04"]
[TimeControl "180+2"]
[Date "2023.03.07"]
[WhiteClock "0:01:25"]
[BlackClock "0:00:57"]

1. b3 {[%clk 0:02:57]}  c5 {[%clk 0:02:58]} 2. Bb2 {[%clk 0:02:58]}  Nc6 {[%clk 0:02:58]} 3. Nf3 {[%clk 0:02:58]}  d5 {[%clk 0:02:59]} 4. d4 {[%clk 0:02:58]}  cxd4 {[%clk 0:02:56]} 5. Nxd4 {[%clk 0:02:59]}  Nf6 {[%clk 0:02:52]} 6. Nc3 {[%clk 0:02:58]}  g6 {[%clk 0:02:51]} 7. e4 {[%clk 0:02:55]}  Bg7 {[%clk 0:02:29]} 8. Bb5 {[%clk 0:02:54]}  O-O {[%clk 0:02:25]} 9. Bxc6 {[%clk 0:02:48]}  bxc6 {[%clk 0:02:21]} 10. Nxc6 {[%clk 0:02:48]}  Qc7 {[%clk 0:02:13]} 11. Nxd5 {[%clk 0:02:38]}  Nxd5 {[%clk 0:02:11]} 12. Bxg7 {[%clk 0:02:39]}  Kxg7 {[%clk 0:01:36]} 13. exd5 {[%clk 0:02:35]}  Bb7 {[%clk 0:01:34]} 14. O-O {[%clk 0:02:15]}  Bxc6 {[%clk 0:01:33]} 15. dxc6 {[%clk 0:02:16]}  Qxc6 {[%clk 0:01:34]} 16. c4 {[%clk 0:02:15]}  Rfd8 {[%clk 0:01:33]} 17. Qe2 {[%clk 0:02:15]}  Qf6 {[%clk 0:01:30]} 18. Rad1 {[%clk 0:02:14]}  a5 {[%clk 0:01:27]} 19. g3 {[%clk 0:02:12]}  a4 {[%clk 0:01:27]} 20. h4 {[%clk 0:01:58]}  axb3 {[%clk 0:01:26]} 21. axb3 {[%clk 0:01:59]}  e6 {[%clk 0:01:13]} 22. Rxd8 {[%clk 0:01:59]}  Rxd8 {[%clk 0:01:13]} 23. Rd1 {[%clk 0:02:00]}  Rb8 {[%clk 0:01:11]} 24. Rd3 {[%clk 0:01:59]}  Qa1+ {[%clk 0:01:10]} 25. Kg2 {[%clk 0:01:59]}  Qb1 {[%clk 0:01:08]} 26. Qe5+ {[%clk 0:01:58]}  Kh6 {[%clk 0:01:06]} 27. Rf3 {[%clk 0:01:43]}  Rxb3 {[%clk 0:01:03]} 28. Qf4+ {[%clk 0:01:25]}  Kg7 {[%clk 0:00:57]} 29. Qxf7+ {[%clk 0:01:25]}  Kh6 {[%clk 0:00:57]} 30. Qf4+ {[%clk 0:01:25]}  Kg7 {[%clk 0:00:57]} 31. Qf8# {[%clk 0:01:25]} 1-0


[Site "https://www.chess.com"]

[Event "Titled Tuesday Blitz March 07 Early 2023"]
[White "Begunov, Konstantin"]
[Black "Kim, Sergey"]
[WhiteFideId "4118510"]
[BlackFideId "13700570"]
[WhiteElo "2079"]
[BlackElo "2630"]
[Result "1/2-1/2"]
[Round "04"]
[TimeControl "180+2"]
[Date "2023.03.07"]
[WhiteClock "0:00:16"]
[BlackClock "0:00:46"]

1. d4 {[%clk 0:03:00]}  Nf6 {[%clk 0:02:59]} 2. c4 {[%clk 0:03:00]}  g6 {[%clk 0:02:59]} 3. f3 {[%clk 0:03:01]}  Bg7 {[%clk 0:03:00]} 4. e4 {[%clk 0:03:00]}  d6 {[%clk 0:03:00]} 5. Nc3 {[%clk 0:03:01]}  O-O {[%clk 0:03:00]} 6. Be3 {[%clk 0:03:02]}  Nc6 {[%clk 0:03:00]} 7. Nge2 {[%clk 0:03:02]}  a6 {[%clk 0:03:00]} 8. a3 {[%clk 0:03:03]}  Rb8 {[%clk 0:02:58]} 9. b4 {[%clk 0:03:03]}  e5 {[%clk 0:02:57]} 10. d5 {[%clk 0:03:03]}  Ne7 {[%clk 0:02:57]} 11. Qd2 {[%clk 0:03:02]}  c6 {[%clk 0:02:56]} 12. dxc6 {[%clk 0:02:58]}  bxc6 {[%clk 0:02:55]} 13. Rd1 {[%clk 0:02:58]}  Be6 {[%clk 0:02:55]} 14. Qxd6 {[%clk 0:02:52]}  Qxd6 {[%clk 0:02:50]} 15. Rxd6 {[%clk 0:02:53]}  Bxc4 {[%clk 0:02:50]} 16. Bg5 {[%clk 0:02:43]}  Be6 {[%clk 0:02:33]} 17. Nc1 {[%clk 0:02:20]}  h6 {[%clk 0:02:21]} 18. Be3 {[%clk 0:02:12]}  Ra8 {[%clk 0:02:00]} 19. Nd3 {[%clk 0:01:47]}  Nd7 {[%clk 0:01:56]} 20. Nc5 {[%clk 0:01:44]}  Nxc5 {[%clk 0:01:55]} 21. Bxc5 {[%clk 0:01:42]}  Rfe8 {[%clk 0:01:55]} 22. Be2 {[%clk 0:01:36]}  Bf8 {[%clk 0:01:48]} 23. Kf2 {[%clk 0:01:34]}  g5 {[%clk 0:01:44]} 24. Rhd1 {[%clk 0:01:27]}  Rec8 {[%clk 0:01:42]} 25. Na4 {[%clk 0:01:24]}  Ng6 {[%clk 0:01:33]} 26. Nb6 {[%clk 0:01:12]}  Bxd6 {[%clk 0:01:29]} 27. Rxd6 {[%clk 0:01:12]}  a5 {[%clk 0:01:24]} 28. Nxa8 {[%clk 0:00:53]}  Rxa8 {[%clk 0:01:23]} 29. Rxc6 {[%clk 0:00:52]}  axb4 {[%clk 0:01:23]} 30. Bxb4 {[%clk 0:00:51]}  Nf4 {[%clk 0:01:17]} 31. Bf1 {[%clk 0:00:50]}  Rd8 {[%clk 0:01:12]} 32. Rc3 {[%clk 0:00:37]}  Rd2+ {[%clk 0:01:09]} 33. Ke3 {[%clk 0:00:27]}  Ra2 {[%clk 0:01:06]} 34. g3 {[%clk 0:00:27]}  Ng2+ {[%clk 0:00:59]} 35. Kd3 {[%clk 0:00:18]}  Ne1+ {[%clk 0:00:55]} 36. Ke3 {[%clk 0:00:18]}  Nc2+ {[%clk 0:00:52]} 37. Kd3 {[%clk 0:00:16]}  Ne1+ {[%clk 0:00:52]} 38. Ke3 {[%clk 0:00:15]}  Nc2+ {[%clk 0:00:52]} 39. Kd3 {[%clk 0:00:16]}  Ne1+ {[%clk 0:00:46]} 1/2-1/2


[Site "https://www.chess.com"]

[Event "Titled Tuesday Blitz March 07 Early 2023"]
[White "Domingo Nunez, Ruben"]
[Black "Topalov, Aleksandar"]
[WhiteFideId "22245570"]
[BlackFideId "925659"]
[WhiteElo "2404"]
[BlackElo "2151"]
[Result "1-0"]
[Round "04"]
[TimeControl "180+2"]
[Date "2023.03.07"]
[WhiteClock "0:00:15"]
[BlackClock "0:00:01"]

1. b3 {[%clk 0:02:55]}  Nf6 {[%clk 0:02:59]} 2. Bb2 {[%clk 0:02:56]}  g6 {[%clk 0:02:58]} 3. Nf3 {[%clk 0:02:56]}  Bg7 {[%clk 0:02:57]} 4. g3 {[%clk 0:02:56]}  O-O {[%clk 0:02:57]} 5. Bg2 {[%clk 0:02:57]}  d6 {[%clk 0:02:57]} 6. d4 {[%clk 0:02:57]}  Nbd7 {[%clk 0:02:55]} 7. O-O {[%clk 0:02:55]}  e5 {[%clk 0:02:55]} 8. dxe5 {[%clk 0:02:53]}  Ng4 {[%clk 0:02:56]} 9. Nc3 {[%clk 0:02:42]}  Ngxe5 {[%clk 0:02:55]} 10. Nxe5 {[%clk 0:02:42]}  Nxe5 {[%clk 0:02:53]} 11. Rb1 {[%clk 0:02:39]}  Nc6 {[%clk 0:02:44]} 12. Nd5 {[%clk 0:02:39]}  Bxb2 {[%clk 0:02:43]} 13. Rxb2 {[%clk 0:02:39]}  Be6 {[%clk 0:02:43]} 14. c4 {[%clk 0:02:38]}  Bxd5 {[%clk 0:02:35]} 15. Qxd5 {[%clk 0:02:38]}  Qf6 {[%clk 0:02:27]} 16. Rd2 {[%clk 0:02:38]}  Rfe8 {[%clk 0:02:25]} 17. Qb5 {[%clk 0:02:33]}  Qc3 {[%clk 0:01:44]} 18. Rfd1 {[%clk 0:02:03]}  Rab8 {[%clk 0:00:50]} 19. Bxc6 {[%clk 0:02:03]}  bxc6 {[%clk 0:00:50]} 20. Qxc6 {[%clk 0:02:04]}  Re7 {[%clk 0:00:48]} 21. e3 {[%clk 0:02:01]}  a5 {[%clk 0:00:45]} 22. Kg2 {[%clk 0:01:58]}  h5 {[%clk 0:00:37]} 23. h4 {[%clk 0:01:57]}  Rb6 {[%clk 0:00:30]} 24. Qa8+ {[%clk 0:01:50]}  Kg7 {[%clk 0:00:30]} 25. Rd3 {[%clk 0:01:51]}  Qb4 {[%clk 0:00:29]} 26. Rc1 {[%clk 0:01:05]}  Qa3 {[%clk 0:00:25]} 27. Rc2 {[%clk 0:01:04]}  Rb4 {[%clk 0:00:15]} 28. Qa7 {[%clk 0:00:41]}  a4 {[%clk 0:00:12]} 29. c5 {[%clk 0:00:38]}  Rbe4 {[%clk 0:00:07]} 30. Rdc3 {[%clk 0:00:24]}  Qb4 {[%clk 0:00:05]} 31. a3 {[%clk 0:00:20]}  Qb5 {[%clk 0:00:03]} 32. b4 {[%clk 0:00:17]}  R4e5 {[%clk 0:00:01]} 33. Qa8 {[%clk 0:00:15]} 1-0


[Site "https://www.chess.com"]

[Event "Titled Tuesday Blitz March 07 Early 2023"]
[White "Melikyan, Gnel"]
[Black "Matveeva, Olga"]
[WhiteFideId "54109990"]
[BlackFideId "24107018"]
[WhiteElo "2138"]
[BlackElo "2056"]
[Result "1-0"]
[Round "04"]
[TimeControl "180+2"]
[Date "2023.03.07"]
[WhiteClock "0:00:12"]
[BlackClock "0:00:02"]

1. h3 {[%clk 0:02:59]}  d5 {[%clk 0:02:59]} 2. c4 {[%clk 0:02:59]}  d4 {[%clk 0:02:56]} 3. Nf3 {[%clk 0:02:59]}  c5 {[%clk 0:02:56]} 4. e3 {[%clk 0:02:59]}  Nc6 {[%clk 0:02:53]} 5. a3 {[%clk 0:02:59]}  a5 {[%clk 0:02:52]} 6. d3 {[%clk 0:02:58]}  e5 {[%clk 0:02:50]} 7. exd4 {[%clk 0:02:57]}  cxd4 {[%clk 0:02:51]} 8. Nbd2 {[%clk 0:02:54]}  Nf6 {[%clk 0:02:47]} 9. g3 {[%clk 0:02:53]}  Bd6 {[%clk 0:02:43]} 10. Bg2 {[%clk 0:02:53]}  O-O {[%clk 0:02:43]} 11. O-O {[%clk 0:02:53]}  Re8 {[%clk 0:02:42]} 12. Re1 {[%clk 0:02:53]}  Bf5 {[%clk 0:02:38]} 13. Qc2 {[%clk 0:02:49]}  h6 {[%clk 0:02:33]} 14. b3 {[%clk 0:02:40]}  Rc8 {[%clk 0:02:31]} 15. Nh4 {[%clk 0:02:32]}  Bh7 {[%clk 0:02:23]} 16. Ne4 {[%clk 0:02:28]}  Be7 {[%clk 0:02:22]} 17. Nxf6+ {[%clk 0:02:26]}  Bxf6 {[%clk 0:02:23]} 18. Nf3 {[%clk 0:02:24]}  e4 {[%clk 0:02:20]} 19. dxe4 {[%clk 0:02:19]}  d3 {[%clk 0:02:19]} 20. Qa2 {[%clk 0:02:18]}  Bxa1 {[%clk 0:02:16]} 21. Qxa1 {[%clk 0:02:19]}  Rxe4 {[%clk 0:02:14]} 22. Be3 {[%clk 0:02:19]}  Re8 {[%clk 0:01:49]} 23. Qc3 {[%clk 0:02:17]}  Qd7 {[%clk 0:01:29]} 24. Rd1 {[%clk 0:02:09]}  Be4 {[%clk 0:01:20]} 25. b4 {[%clk 0:01:51]}  axb4 {[%clk 0:01:20]} 26. axb4 {[%clk 0:01:51]}  Qf5 {[%clk 0:00:45]} 27. Nh4 {[%clk 0:01:36]}  Qh7 {[%clk 0:00:44]} 28. Bf1 {[%clk 0:01:21]}  Ne5 {[%clk 0:00:33]} 29. Bd4 {[%clk 0:01:19]}  Nxc4 {[%clk 0:00:19]} 30. Qb3 {[%clk 0:01:06]}  Nd6 {[%clk 0:00:18]} 31. f3 {[%clk 0:01:05]}  Bg6 {[%clk 0:00:15]} 32. g4 {[%clk 0:00:58]}  Nb5 {[%clk 0:00:14]} 33. Bc5 {[%clk 0:00:57]}  Rcd8 {[%clk 0:00:12]} 34. Nxg6 {[%clk 0:00:52]}  Qxg6 {[%clk 0:00:11]} 35. Bxd3 {[%clk 0:00:53]}  Qc6 {[%clk 0:00:10]} 36. Qc4 {[%clk 0:00:42]}  Nd6 {[%clk 0:00:09]} 37. Qf4 {[%clk 0:00:41]}  Nc8 {[%clk 0:00:07]} 38. Qf5 {[%clk 0:00:38]}  g6 {[%clk 0:00:06]} 39. Qf4 {[%clk 0:00:36]}  b6 {[%clk 0:00:06]} 40. Bd4 {[%clk 0:00:31]}  Qe6 {[%clk 0:00:04]} 41. Bb5 {[%clk 0:00:22]}  Rf8 {[%clk 0:00:04]} 42. Qxh6 {[%clk 0:00:20]}  f6 {[%clk 0:00:03]} 43. Qxg6+ {[%clk 0:00:20]}  Kh8 {[%clk 0:00:03]} 44. Kg2 {[%clk 0:00:18]}  Nd6 {[%clk 0:00:03]} 45. Bd3 {[%clk 0:00:17]}  Rd7 {[%clk 0:00:01]} 46. Qh6+ {[%clk 0:00:14]}  Kg8 {[%clk 0:00:02]} 47. Rd2 {[%clk 0:00:12]} 1-0


[Site "https://www.chess.com"]